bitfinex-derivatives/quotes_BTCF0:USTF0_20230402
["timestamp","ask_amount","ask_price","bid_price","bid_amount"]
[1680449220849,0.05,28139.0,28135.0,0.0533]
[1680449222055,0.051,28139.0,28135.0,0.0553]
[1680449222249,0.1043,28139.0,28135.0,0.055]
[1680449222650,0.1033,28139.0,28135.0,0.053]
[1680449223153,0.1033,28139.0,28135.0,0.055]
[1680449223154,0.1043,28139.0,28135.0,0.055]
[1680449224356,0.1163,28139.0,28135.0,0.053]
[1680449224758,0.417,28139.0,28135.0,0.053]
[1680449227558,0.00686242,28138.0,28135.0,0.053]
[1680449227859,0.00686242,28138.0,28137.0,0.1033]
[1680449228254,0.013,28139.0,28137.0,0.1033]
[1680449228455,0.00677515,28138.0,28137.0,0.1033]
[1680449228761,0.05,28141.0,28137.0,0.0533]
[1680449228957,0.00677546,28138.0,28137.0,0.0533]
[1680449229157,0.05,28141.0,28137.0,0.0533]
[1680449229562,0.05,28141.0,28140.0,0.0533]
[1680449229768,0.05,28142.0,28140.0,0.0533]
[1680449231459,0.3507,28143.0,28140.0,0.0533]
[1680449232055,0.05,28143.0,28139.0,0.0532]
[1680449232265,0.41,28143.0,28139.0,0.0532]
[1680449237272,0.41,28143.0,28135.0,0.04241696]
[1680449237273,0.354,28140.0,28135.0,0.04241696]
[1680449237465,0.354,28140.0,28132.0,0.04241696]
[1680449237466,0.6563,28137.0,28132.0,0.04241696]
[1680449237664,0.4089,28133.0,28131.0,0.04241696]
[1680449237863,0.0529,28132.0,28129.0,0.04241696]
[1680449238162,0.3007,28131.0,28128.0,0.04241696]
[1680449238564,0.3507,28131.0,28128.0,0.04241696]
[1680449239070,0.05,28130.0,28128.0,0.04241696]
[1680449239870,0.05,28130.0,28128.0,0.04341696]
[1680449240373,0.052,28130.0,28128.0,0.04341696]
[1680449240768,0.052,28130.0,28128.0,0.001]
[1680449241172,0.052,28130.0,28128.0,0.04341696]
[1680449241673,0.052,28130.0,28128.0,0.001]
[1680449242170,0.1043,28130.0,28128.0,0.001]
[1680449242370,0.1043,28130.0,28127.0,0.34311696]
[1680449242371,0.1033,28130.0,28127.0,0.34311696]
[1680449242673,0.01834343,28129.0,28128.0,0.001]
[1680449243461,0.02034343,28129.0,28128.0,0.001]
[1680449249075,0.0529,28133.0,28128.0,0.0543]
[1680449249372,0.01589621,28129.0,28128.0,0.39741696]
[1680449249570,0.05,28132.0,28128.0,0.44741696]
[1680449249972,0.05,28132.0,28128.0,0.44641696]
[1680449250173,0.0589,28133.0,28129.0,0.05]
[1680449250575,0.3007,28134.0,28131.0,0.3535]
[1680449250775,0.3007,28134.0,28132.0,0.05]
[1680449250975,0.1029,28136.0,28132.0,0.05]
[1680449251973,0.1029,28136.0,28131.0,0.3535]
[1680449252175,0.0719,28136.0,28132.0,0.05]
[1680449252577,0.0589,28136.0,28132.0,0.05]
[1680449253274,0.0589,28136.0,28131.0,0.44591696]
[1680449253478,0.3539,28133.0,28129.0,0.09571696]
[1680449253682,0.05,28132.0,28129.0,0.0533]
[1680449254587,0.0533,28130.0,28128.0,0.04241696]
[1680449254770,0.0533,28130.0,28127.0,0.04241696]
[1680449254771,0.05,28129.0,28127.0,0.04241696]
[1680449254971,0.053,28128.0,28125.0,0.05094708]
[1680449255276,0.103,28127.0,28125.0,0.00853012]
[1680449255475,0.05,28126.0,28125.0,0.00853012]
[1680449255671,0.05,28126.0,28125.0,0.06173012]
[1680449255876,0.05,28127.0,28125.0,0.06173012]
[1680449256083,0.05,28127.0,28125.0,0.06373012]
[1680449256383,0.05,28127.0,28125.0,0.01053012]
[1680449256580,0.003,28126.0,28125.0,0.01153012]
[1680449256780,0.01986798,28126.0,28125.0,0.01153012]
[1680449257681,0.01686798,28126.0,28125.0,0.01153012]
[1680449258282,0.01986798,28126.0,28125.0,0.01153012]
[1680449260887,0.01986798,28126.0,28125.0,0.36543012]
[1680449261181,0.01986798,28126.0,28125.0,0.41543012]
[1680449261376,0.05,28132.0,28125.0,0.479046]
[1680449261576,0.0531,28131.0,28128.0,0.3007]
[1680449261779,0.01687061,28130.0,28129.0,0.05]
[1680449262180,0.01687061,28130.0,28129.0,0.0532]
[1680449262378,0.01687061,28130.0,28129.0,0.1032]
[1680449262583,0.1032,28133.0,28129.0,0.1032]
[1680449262884,0.0532,28133.0,28129.0,0.1032]
[1680449263473,0.001,28130.0,28129.0,0.1082]
[1680449263882,0.05,28132.0,28129.0,0.0542]
[1680449264180,0.0592,28133.0,28129.0,0.0542]
[1680449264380,0.0532,28133.0,28129.0,0.0532]
[1680449264578,0.001,28130.0,28129.0,0.0582]
[1680449264983,0.05,28132.0,28129.0,0.0542]
[1680449265481,0.3507,28132.0,28129.0,0.0542]
[1680449265878,0.0533,28130.0,28129.0,0.001]
[1680449266079,0.1033,28130.0,28129.0,0.001]
[1680449266383,0.1033,28130.0,28126.0,0.04244739]
[1680449266582,0.1043,28130.0,28129.0,0.005]
[1680449267086,0.4599,28130.0,28129.0,0.005]
[1680449268884,0.5132,28130.0,28129.0,0.005]
[1680449269280,0.4599,28130.0,28129.0,0.005]
[1680449272591,0.47799821,28130.0,28125.0,0.00853012]
[1680449272794,0.0533,28127.0,28125.0,0.00853012]
[1680449272989,0.05,28126.0,28125.0,0.00853012]
[1680449273388,0.05,28126.0,28125.0,0.00953012]
[1680449273989,0.1033,28127.0,28125.0,0.00953012]
[1680449274190,0.003,28126.0,28125.0,0.00953012]
[1680449274389,0.053,28126.0,28125.0,0.00953012]
[1680449274791,0.003,28126.0,28125.0,0.00953012]
[1680449276098,0.003,28126.0,28125.0,0.05953012]
[1680449276291,0.003,28126.0,28125.0,0.10197751]
[1680449276700,0.003,28126.0,28125.0,0.05953012]
[1680449277096,0.003,28126.0,28125.0,0.10197751]
[1680449277290,0.003,28126.0,28125.0,0.05953012]
[1680449278403,0.003,28126.0,28125.0,0.11283012]
[1680449279094,0.003,28126.0,28125.0,0.15527751]
[1680449279394,0.003,28126.0,28125.0,0.10197751]
[1680449279798,0.003,28126.0,28125.0,0.15487751]
[1680449281293,0.003,28126.0,28125.0,0.11243012]
[1680449282799,0.003,28126.0,28125.0,0.41313012]
[1680449283094,0.02086128,28126.0,28125.0,0.476746]
[1680449283294,0.02086128,28126.0,28125.0,0.41313012]
[1680449283497,0.02086128,28126.0,28125.0,0.36313012]
[1680449287003,0.02086128,28126.0,28125.0,0.41313012]
[1680449288193,0.003,28126.0,28125.0,0.41313012]
[1680449289799,0.003,28126.0,28125.0,0.46643012]
[1680449290304,0.8496,28134.0,28125.0,0.5723566]
[1680449290603,0.01277116,28133.0,28131.0,0.3537]
[1680449291002,0.05,28133.0,28131.0,0.3537]
[1680449291203,0.05,28133.0,28132.0,0.05]
[1680449291400,0.05,28134.0,28132.0,0.05]
[1680449291601,0.006,28133.0,28132.0,0.05]
[1680449292204,0.006,28133.0,28131.0,0.053]
[1680449292402,0.006,28133.0,28131.0,0.09555548]
[1680449292900,0.006,28133.0,28131.0,0.053]
[1680449293297,0.7096,28132.0,28130.0,0.04255548]
[1680449293601,0.7096,28132.0,28127.0,0.04255548]
[1680449293602,0.0533,28130.0,28127.0,0.04255548]
[1680449293804,0.0532,28128.0,28127.0,0.04255548]
[1680449294404,0.0532,28128.0,28126.0,0.04255548]
[1680449294704,0.05,28129.0,28127.0,0.04555548]
[1680449294910,0.0563,28128.0,28127.0,0.04555548]
[1680449295613,0.0563,28128.0,28127.0,0.003]
[1680449295903,0.0563,28128.0,28127.0,0.04555548]
[1680449296516,0.0563,28128.0,28127.0,0.04255548]
[1680449297007,0.0563,28128.0,28127.0,0.11983322]
[1680449297008,0.003,28128.0,28127.0,0.11983322]
[1680449297513,0.003,28128.0,28127.0,0.16983322]
[1680449298414,0.003,28128.0,28127.0,0.106]
[1680449298614,0.003,28128.0,28127.0,0.19111096]
[1680449301507,0.003,28128.0,28127.0,0.14111096]
[1680449301712,0.003,28128.0,28127.0,0.19111096]
[1680449304813,0.003,28128.0,28127.0,0.14111096]
[1680449305411,0.003,28128.0,28127.0,0.08811096]
[1680449305613,0.01638887,28128.0,28127.0,0.08811096]
[1680449305812,0.003,28128.0,28127.0,0.003]
[1680449308310,0.003,28128.0,28127.0,0.06686338]
[1680449309121,0.003,28128.0,28127.0,0.003]
[1680449311121,0.0558,28128.0,28127.0,0.06687605]
[1680449311520,0.003,28128.0,28127.0,0.06687605]
[1680449317628,0.01569405,28128.0,28127.0,0.06687605]
[1680449324235,0.01569405,28128.0,28127.0,0.003]
[1680449330139,0.01569405,28128.0,28127.0,0.0558]
[1680449331232,0.01569405,28128.0,28127.0,0.14091096]
[1680449331737,0.01569405,28128.0,28127.0,0.19091096]
[1680449332335,0.01569405,28128.0,28127.0,0.1058]
[1680449332537,0.003,28128.0,28127.0,0.1058]
[1680449333538,0.3007,28132.0,28128.0,0.05]
[1680449333738,0.3007,28132.0,28130.0,0.04259996]
[1680449333939,0.01353482,28131.0,28130.0,0.09259996]
[1680449334240,0.01353482,28131.0,28130.0,0.04259996]
[1680449334632,0.01353482,28131.0,28129.0,0.36459994]
[1680449335040,0.06453482,28131.0,28130.0,0.04860091]
[1680449335434,0.06453482,28131.0,28130.0,0.04260091]
[1680449335738,0.06453482,28131.0,28129.0,0.04860091]
[1680449335739,0.11743482,28131.0,28129.0,0.04860091]
[1680449336443,0.3007,28130.0,28129.0,0.006]
[1680449336647,0.3507,28130.0,28129.0,0.006]
[1680449337653,0.3507,28130.0,28128.0,0.04260091]
[1680449337951,0.05,28129.0,28128.0,0.04260091]
[1680449338548,0.1566,28129.0,28126.0,0.06389994]
[1680449338853,0.1042,28130.0,28128.0,0.056]
[1680449339049,0.0532,28130.0,28127.0,0.11389994]
[1680449339250,0.002,28129.0,28128.0,0.006]
[1680449339455,0.052,28129.0,28128.0,0.006]
[1680449339650,0.05,28129.0,28128.0,0.006]
[1680449340453,0.4049,28130.0,28128.0,0.006]
[1680449340853,0.002,28129.0,28128.0,0.006]
[1680449341052,0.052,28129.0,28128.0,0.006]
[1680449341846,0.002,28129.0,28128.0,0.006]
[1680449342252,0.0553,28129.0,28128.0,0.006]
[1680449344358,0.1053,28129.0,28128.0,0.006]
[1680449345358,0.0553,28129.0,28128.0,0.006]
[1680449347559,0.06816887,28129.0,28128.0,0.006]
[1680449362163,0.05756887,28129.0,28128.0,0.006]
[1680449365370,0.50586887,28129.0,28125.0,0.06389994]
[1680449365575,0.0423,28126.0,28124.0,0.06389994]
[1680449365875,0.05772107,28125.0,28124.0,0.06389994]
[1680449366875,0.10772107,28125.0,28124.0,0.06389994]
[1680449367077,0.15042107,28125.0,28124.0,0.06389994]
[1680449367770,0.15342107,28125.0,28124.0,0.06489994]
[1680449368776,0.10342107,28125.0,28124.0,0.06489994]
[1680449368974,0.10342107,28125.0,28124.0,0.001]
[1680449370475,0.06092107,28125.0,28124.0,0.001]
[1680449370680,0.06092107,28125.0,28124.0,0.06489994]
[1680449371072,0.01822107,28125.0,28124.0,0.06489994]
[1680449371276,0.06052107,28125.0,28124.0,0.06489994]
[1680449372178,0.07152107,28125.0,28124.0,0.001]
[1680449379984,0.12152107,28125.0,28124.0,0.001]
[1680449380781,0.12152107,28125.0,28124.0,6.847e-05]
[1680449380983,0.1033,28124.0,28120.0,0.06389994]
[1680449381182,0.354,28121.0,28120.0,0.06389994]
[1680449382385,0.357,28121.0,28120.0,0.06389994]
[1680449384279,0.0563,28121.0,28120.0,0.06389994]
[1680449388386,0.07157633,28121.0,28120.0,0.06389994]
[1680449390290,0.07157633,28121.0,28119.0,0.06389994]
[1680449390487,0.07157633,28121.0,28119.0,0.11389994]
[1680449390685,0.07157633,28121.0,28119.0,0.06389994]
[1680449392196,0.0533,28120.0,28119.0,0.06389994]
[1680449392392,0.06857846,28120.0,28119.0,0.06389994]
[1680449393091,0.12167846,28120.0,28118.0,0.06389994]
[1680449393290,0.1028,28119.0,28118.0,0.06389994]
[1680449394190,0.1058,28119.0,28118.0,0.06389994]
[1680449397092,0.1058,28119.0,28117.0,0.06389994]
[1680449397301,0.0531,28118.0,28117.0,0.06389994]
[1680449398195,0.7094,28118.0,28116.0,0.06389994]
[1680449398395,0.1032,28117.0,28115.0,0.06389994]
[1680449398600,0.05,28116.0,28115.0,0.06389994]
[1680449399199,0.1032,28117.0,28115.0,0.0638212]
[1680449399993,0.1063,28116.0,28115.0,0.0638212]
[1680449400389,0.1033,28116.0,28115.0,0.0638212]
[1680449400700,0.1033,28116.0,28114.0,0.0638212]
[1680449400895,0.404,28115.0,28114.0,0.0638212]
[1680449401090,0.404,28115.0,28112.0,0.0638212]
[1680449401292,0.1033,28114.0,28112.0,0.0638212]
[1680449401497,0.05,28113.0,28112.0,0.0638212]
[1680449402201,0.1033,28113.0,28112.0,0.0638212]
[1680449403197,0.1063,28113.0,28112.0,0.0638212]
[1680449404103,0.003,28113.0,28112.0,0.3645212]
[1680449404401,0.05,28118.0,28113.0,0.05]
[1680449404601,0.1032,28118.0,28116.0,0.3007]
[1680449404902,0.0532,28118.0,28116.0,0.3007]
[1680449405605,0.0562,28118.0,28116.0,0.3037]
[1680449406203,0.02503948,28117.0,28116.0,0.3037]
[1680449406706,0.0562,28118.0,28116.0,0.003]
[1680449406896,0.02510894,28117.0,28116.0,0.003]
[1680449407500,0.02810894,28117.0,28116.0,0.003]
[1680449407696,0.43680894,28117.0,28116.0,0.003]
[1680449407895,0.48680894,28117.0,28116.0,0.003]
[1680449408102,0.54020894,28117.0,28116.0,0.003]
[1680449408905,0.4056,28116.0,28113.0,0.06379297]
[1680449409102,0.4089,28114.0,28112.0,0.06379297]
[1680449409306,0.1031,28113.0,28112.0,0.06379297]
[1680449409905,0.1031,28113.0,28111.0,0.06379297]
[1680449410105,0.1034,28112.0,28110.0,0.06379297]
[1680449410305,0.05,28111.0,28110.0,0.11379297]
[1680449410500,0.05,28111.0,28110.0,0.06379297]
[1680449411201,0.1034,28111.0,28110.0,0.06379297]
[1680449412008,0.1064,28111.0,28110.0,0.06379297]
[1680449412210,0.1064,28111.0,28109.0,0.06379297]
[1680449412507,0.0534,28110.0,28109.0,0.11379297]
[1680449412707,0.0534,28110.0,28109.0,0.06379297]
[1680449413109,0.0534,28110.0,28108.0,0.36449297]
[1680449413308,0.0534,28109.0,28108.0,0.36449297]
[1680449415214,0.0564,28109.0,28108.0,0.3007]
[1680449415511,0.0564,28109.0,28107.0,0.06379297]
[1680449415710,0.0531,28108.0,28107.0,0.06379297]
[1680449416009,0.0531,28108.0,28105.0,0.36449297]
[1680449416604,0.0561,28108.0,28105.0,0.36449297]
[1680449418015,0.0534,28106.0,28105.0,0.36449297]
[1680449418212,0.0534,28106.0,28105.0,0.3007]
[1680449418413,0.0534,28106.0,28101.0,0.06379297]
[1680449418609,0.0534,28103.0,28101.0,0.06379297]
[1680449419315,0.0534,28103.0,28102.0,0.3007]
[1680449419511,0.0534,28103.0,28102.0,0.36449297]
[1680449419708,0.0564,28103.0,28102.0,0.41449297]
[1680449419915,0.003,28103.0,28102.0,0.41449297]
[1680449420111,0.003,28103.0,28102.0,0.41438768]
[1680449421622,0.003,28103.0,28102.0,0.36438768]
[1680449421919,0.0383091,28103.0,28102.0,0.3007]
[1680449423812,0.0916091,28103.0,28102.0,0.3007]
[1680449429518,0.0916091,28103.0,28099.0,0.3007]
[1680449430216,0.409,28100.0,28093.0,0.66768768]
[1680449430427,0.0534,28096.0,28093.0,0.3007]
[1680449431019,0.409,28096.0,28093.0,0.3007]
[1680449431323,0.0534,28094.0,28093.0,0.3007]
[1680449432122,0.1068,28094.0,28093.0,0.3007]
[1680449432323,0.1568,28094.0,28093.0,0.3007]
[1680449432520,0.1068,28094.0,28093.0,0.3007]
[1680449433321,0.1098,28094.0,28093.0,0.3007]
[1680449433724,0.15830306,28094.0,28093.0,0.3007]
[1680449434427,0.10490306,28094.0,28093.0,0.3007]
[1680449434816,0.15490306,28094.0,28093.0,0.3007]
[1680449435022,0.4,28088.0,28082.0,0.06368768]
[1680449435327,1.2667,28083.0,28076.0,0.06357356]
[1680449435529,0.7628,28077.0,28072.0,0.3129]
[1680449435722,0.7628,28077.0,28068.0,0.38546475]
[1680449435723,0.3007,28073.0,28068.0,0.3007]
[1680449435917,0.3007,28073.0,28069.0,0.05]
[1680449436118,0.0534,28071.0,28069.0,0.05]
[1680449436318,0.4075,28070.0,28069.0,0.05]
[1680449436519,0.0535,28072.0,28066.0,0.46357356]
[1680449436829,0.0535,28072.0,28067.0,0.11697356]
[1680449437030,0.0535,28072.0,28068.0,0.06357356]
[1680449437238,0.0535,28072.0,28067.0,0.1034]
[1680449437439,0.0565,28072.0,28067.0,0.1034]
[1680449437641,0.0565,28072.0,28069.0,0.05]
[1680449438137,0.003,28072.0,28071.0,0.0534]
[1680449438544,0.0564,28072.0,28069.0,0.05]
[1680449439036,0.003,28072.0,28071.0,0.0534]
[1680449439443,0.07350517,28072.0,28071.0,0.1034]
[1680449439633,0.003,28072.0,28071.0,0.05]
[1680449440334,0.0562,28072.0,28071.0,0.05]
[1680449440530,0.003,28072.0,28071.0,0.05]
[1680449441235,0.003,28072.0,28071.0,0.1029]
[1680449442040,0.0534,28077.0,28073.0,0.4]
[1680449442339,0.3007,28086.0,28076.0,0.4075]
[1680449442651,0.3007,28086.0,28082.0,0.3007]
[1680449442939,0.3007,28086.0,28085.0,0.0534]
[1680449443537,0.3017,28086.0,28083.0,0.1029]
[1680449443737,0.3017,28086.0,28084.0,0.05]
[1680449444441,0.001,28086.0,28084.0,0.05]
[1680449444637,0.0534,28088.0,28084.0,0.05]
[1680449444844,0.001,28086.0,28085.0,0.027]
[1680449445238,0.001,28086.0,28084.0,0.074]
[1680449445439,0.0532,28085.0,28084.0,0.074]
[1680449445738,0.001,28086.0,28084.0,0.1029]
[1680449446136,0.001,28086.0,28084.0,0.1299]
[1680449446335,0.001,28086.0,28085.0,0.3007]
[1680449446534,0.001,28086.0,28085.0,0.3507]
[1680449447141,0.001,28086.0,28085.0,0.4041]
[1680449447342,0.3007,28088.0,28085.0,0.4041]
[1680449447541,0.001,28086.0,28085.0,0.3507]
[1680449447743,0.3007,28088.0,28085.0,0.4041]
[1680449448042,0.3007,28088.0,28086.0,0.1029]
[1680449448246,0.3007,28088.0,28087.0,0.05]
[1680449448438,0.3007,28088.0,28087.0,0.1034]
[1680449448640,0.39684565,28088.0,28086.0,0.05]
[1680449448945,0.39684565,28088.0,28086.0,0.023]
[1680449449147,0.4088,28087.0,28086.0,0.023]
[1680449449449,0.4088,28087.0,28077.0,0.05]
[1680449449450,0.023,28086.0,28077.0,0.05]
[1680449449647,0.0534,28079.0,28078.0,0.3152]
[1680449449944,0.0534,28079.0,28075.0,0.05]
[1680449450745,0.0534,28079.0,28074.0,0.3007]
[1680449450936,0.05,28078.0,28075.0,0.011]
[1680449451338,0.0533,28076.0,28075.0,0.011]
[1680449451935,0.3507,28078.0,28075.0,0.0534]
[1680449452141,0.4057,28078.0,28075.0,0.011]
[1680449453139,0.4057,28078.0,28071.0,0.05]
[1680449453140,0.0532,28076.0,28071.0,0.05]
[1680449453343,0.1034,28075.0,28071.0,0.1029]
[1680449453543,0.05,28075.0,28073.0,0.0534]
[1680449453744,0.05,28077.0,28075.0,0.008]
[1680449454145,0.002,28075.0,28071.0,0.061]
[1680449454341,0.0534,28073.0,28071.0,0.011]
[1680449454547,0.0534,28073.0,28070.0,0.3007]
[1680449455044,0.0534,28073.0,28071.0,0.05]
[1680449455443,0.051,28077.0,28072.0,0.0534]
[1680449455648,0.051,28077.0,28073.0,0.05]
[1680449455844,0.05,28074.0,28073.0,0.05]
[1680449456251,0.051,28077.0,28073.0,0.05]
[1680449456452,0.4041,28078.0,28073.0,0.05]
[1680449456641,0.3541,28078.0,28073.0,0.05]
[1680449456951,0.001,28074.0,28073.0,0.061]
[1680449457148,0.0542,28074.0,28073.0,0.061]
[1680449457348,0.0534,28075.0,28073.0,0.061]
[1680449457349,0.0533,28075.0,28073.0,0.05]
[1680449457544,0.0534,28074.0,28073.0,0.058]
[1680449457746,0.0532,28076.0,28073.0,0.058]
[1680449458051,0.002,28074.0,28073.0,0.061]
[1680449458354,0.3007,28078.0,28073.0,0.4036]
[1680449458554,0.3007,28078.0,28076.0,0.3007]
[1680449458752,0.3007,28078.0,28077.0,0.05]
[1680449458949,0.3007,28078.0,28077.0,0.1029]
[1680449459343,0.3007,28078.0,28076.0,0.3007]
[1680449459554,0.3007,28078.0,28075.0,0.0533]
[1680449459750,0.05,28077.0,28075.0,0.0533]
[1680449460048,0.3007,28078.0,28075.0,0.0533]
[1680449460453,0.3017,28078.0,28077.0,0.008]
[1680449460661,0.3007,28078.0,28076.0,0.3507]
[1680449460860,0.001,28077.0,28076.0,0.3507]
[1680449461149,0.0543,28077.0,28076.0,0.3507]
[1680449461349,0.0533,28077.0,28076.0,0.3507]
[1680449462151,0.001,28078.0,28076.0,0.4041]
[1680449462353,0.001,28078.0,28077.0,0.1033]
[1680449462754,0.0534,28084.0,28077.0,0.78173004]
[1680449462955,0.3007,28085.0,28082.0,0.0534]
[1680449463148,0.03883158,28083.0,28082.0,0.0534]
[1680449463347,0.3007,28085.0,28082.0,0.0534]
[1680449463652,0.05083192,28084.0,28082.0,0.0534]
[1680449464452,0.03883192,28084.0,28082.0,0.0664]
[1680449465548,0.03883192,28084.0,28083.0,0.0533]
[1680449466059,0.03883192,28084.0,28083.0,0.354]
[1680449466262,0.03883192,28084.0,28083.0,0.404]
[1680449466452,0.6014,28091.0,28083.0,0.4571]
[1680449466654,0.6014,28091.0,28087.0,0.0534]
[1680449466854,0.07804773,28090.0,28087.0,0.0534]
[1680449467254,0.02804773,28090.0,28089.0,0.0534]
[1680449467964,0.02904773,28090.0,28089.0,0.0534]
[1680449468554,0.1033,28095.0,28089.0,0.0534]
[1680449468753,0.01367078,28090.0,28088.0,0.05]
[1680449468956,0.05,28095.0,28089.0,0.4075]
[1680449469163,0.3007,28096.0,28094.0,0.0534]
[1680449470061,0.354,28096.0,28091.0,0.0534]
[1680449470364,0.355,28096.0,28094.0,0.008]
[1680449470566,0.05,28095.0,28092.0,0.05]
[1680449470756,0.05,28095.0,28094.0,0.0612]
[1680449471665,0.3017,28096.0,28094.0,0.0612]
[1680449472562,0.3017,28096.0,28095.0,0.0534]
[1680449472862,0.3007,28096.0,28095.0,0.0534]
[1680449473162,0.001,28096.0,28095.0,0.0534]
[1680449473367,0.001,28096.0,28095.0,0.3541]
[1680449473566,0.05,28102.0,28095.0,0.3541]
[1680449473760,0.05,28102.0,28099.0,0.0529]
[1680449474168,0.00925841,28101.0,28099.0,0.0529]
[1680449475168,0.00925841,28101.0,28099.0,0.0549]
[1680449476169,0.30995841,28101.0,28099.0,0.0529]
[1680449476471,0.05,28100.0,28099.0,0.0549]
[1680449477466,0.1034,28100.0,28099.0,0.002]
[1680449477765,0.1034,28100.0,28095.0,0.0529]
[1680449478165,0.1044,28100.0,28099.0,0.008]
[1680449478365,0.4051,28100.0,28099.0,0.008]
[1680449478769,0.41529682,28100.0,28099.0,0.00734995]
[1680449478976,0.41529682,28100.0,28099.0,0.0068014]
[1680449479174,0.41529682,28100.0,28099.0,0.00620775]
[1680449479370,0.41529682,28100.0,28099.0,0.00551929]
[1680449479571,0.0534,28099.0,28093.0,0.05]
[1680449479877,0.0534,28097.0,28095.0,0.008]
[1680449480074,0.0534,28097.0,28093.0,0.05]
[1680449480571,0.0534,28097.0,28093.0,0.051]
[1680449480972,0.0534,28097.0,28093.0,0.05]
[1680449481172,0.3551,28097.0,28093.0,0.057]
[1680449482271,0.3017,28097.0,28096.0,0.0534]
[1680449483075,0.3007,28097.0,28096.0,0.0534]
[1680449483268,0.3017,28097.0,28096.0,0.0604]
[1680449484069,0.3027,28097.0,28096.0,0.0604]
[1680449486378,0.31468963,28097.0,28096.0,0.0604]
[1680449486685,0.31468963,28097.0,28096.0,0.007]
[1680449486686,0.36758963,28097.0,28096.0,0.007]
[1680449487687,0.31468963,28097.0,28096.0,0.007]
[1680449489687,0.36798963,28097.0,28096.0,0.007]
[1680449490185,0.06728963,28097.0,28096.0,0.007]
[1680449490387,0.36798963,28097.0,28096.0,0.007]
[1680449491784,0.0534,28095.0,28092.0,0.3144]
[1680449491984,0.3007,28094.0,28092.0,0.28108737]
[1680449492192,0.3007,28094.0,28086.0,0.0534]
[1680449492193,0.0529,28093.0,28086.0,0.0534]
[1680449492484,0.3541,28091.0,28086.0,0.0534]
[1680449493085,0.05,28090.0,28086.0,0.3551]
[1680449493278,0.05,28090.0,28089.0,0.0532]
[1680449493683,0.01528562,28090.0,28089.0,0.0532]
[1680449494092,0.053,28093.0,28089.0,0.0532]
[1680449494286,0.007,28091.0,28090.0,0.05]
[1680449494591,0.007,28091.0,28090.0,0.1563]
[1680449494793,0.3007,28094.0,28090.0,0.1563]
[1680449495092,0.3007,28096.0,28093.0,0.0534]
[1680449495294,0.0534,28098.0,28094.0,0.05]
[1680449495585,0.3007,28100.0,28095.0,0.3007]
[1680449495783,0.3007,28100.0,28094.0,0.05]
[1680449495980,0.3007,28100.0,28096.0,0.05]
[1680449496990,0.02,28098.0,28095.0,0.3007]
[1680449497390,0.05,28099.0,28095.0,0.3007]
[1680449498094,0.001,28098.0,28095.0,0.3017]
[1680449498287,0.05,28099.0,28097.0,0.0532]
[1680449498593,0.1034,28099.0,28094.0,0.1034]
[1680449498894,0.0531,28096.0,28091.0,0.0534]
[1680449499084,0.05,28095.0,28091.0,0.0534]
[1680449499785,0.0531,28096.0,28091.0,0.0534]
[1680449499985,0.001,28098.0,28095.0,0.1062]
[1680449500190,0.001,28098.0,28097.0,0.0534]
[1680449500589,0.05,28099.0,28097.0,0.0534]
[1680449500990,0.013,28098.0,28095.0,0.3007]
[1680449501184,0.063,28098.0,28097.0,0.0534]
[1680449501386,0.05,28098.0,28097.0,0.0534]
[1680449501588,0.05,28098.0,28095.0,0.3007]
[1680449501793,0.1104,28099.0,28095.0,0.3007]
[1680449502092,0.001,28098.0,28096.0,0.0534]
[1680449502289,0.001,28098.0,28097.0,0.05]
[1680449502486,0.001,28098.0,28096.0,0.1034]
[1680449502690,0.001,28098.0,28096.0,0.0534]
[1680449502987,0.001,28098.0,28096.0,0.1034]
[1680449503192,0.001,28098.0,28097.0,0.0531]
[1680449504191,0.001,28098.0,28096.0,0.001]
[1680449504391,0.001,28098.0,28097.0,0.001]
[1680449508701,0.01224853,28098.0,28097.0,0.001]
[1680449511202,0.06534853,28098.0,28097.0,0.001]
[1680449512004,0.06534853,28098.0,28095.0,0.04214446]
[1680449512005,0.06434853,28098.0,28095.0,0.04214446]
[1680449512303,0.05,28097.0,28095.0,0.04214446]
[1680449513406,0.063,28097.0,28095.0,0.04214446]
[1680449514107,0.063,28097.0,28096.0,0.04214446]
[1680449514410,0.1161,28097.0,28095.0,0.04214446]
[1680449514603,0.0531,28096.0,28095.0,0.04214446]
[1680449515006,0.0531,28096.0,28094.0,0.06357356]
[1680449515213,0.057,28097.0,28094.0,0.11667356]
[1680449515508,0.0534,28096.0,28094.0,0.06357356]
[1680449515708,0.05,28095.0,28094.0,0.06357356]
[1680449518800,0.1034,28096.0,28094.0,0.06357356]
[1680449519001,0.0534,28096.0,28095.0,0.04263145]
[1680449519202,0.3507,28097.0,28095.0,0.0531]
[1680449519402,0.4041,28097.0,28095.0,0.04263161]
[1680449519607,0.4041,28097.0,28094.0,0.06357356]
[1680449519608,0.4041,28097.0,28096.0,0.04263161]
[1680449520013,0.4041,28097.0,28095.0,0.04263161]
[1680449521108,0.3541,28097.0,28095.0,0.04263161]
[1680449521312,0.3671,28097.0,28095.0,0.04263161]
[1680449521706,0.3671,28097.0,28096.0,0.0534]
[1680449521707,0.3137,28097.0,28096.0,0.0534]
[1680449521900,0.3137,28097.0,28096.0,0.05]
[1680449522100,0.3137,28097.0,28096.0,0.14603161]